bitfinex-derivatives/quotes_SOLF0:USTF0_20250516
["timestamp","ask_amount","ask_price","bid_price","bid_amount"]
[1747381502926,68.22829093,172.24,172.2,2.18275959]
[1747381503123,63.42,172.24,172.21,2.18275959]
[1747381503428,69.2246,172.24,172.22,2.18275959]
[1747381503634,253.62375558,172.26,172.23,2.18275959]
[1747381503828,253.62375558,172.26,172.24,2.18275959]
[1747381504029,258.43204651,172.26,172.25,2.18275959]
[1747381504225,70.15549093,172.26,172.19,4.80829093]
[1747381504431,70.15549093,172.26,172.2,2.18261807]
[1747381504730,70.15549093,172.26,172.21,2.18261807]
[1747381504929,70.15549093,172.26,172.22,2.18261807]
[1747381505131,70.15549093,172.26,172.23,2.18261807]
[1747381505334,65.3472,172.26,172.24,2.18261807]
[1747381505537,65.3472,172.26,172.25,2.18219967]
[1747381505939,71.151,172.26,172.25,2.18219967]
[1747381509136,5.8054,172.22,172.18,69.2663]
[1747381509337,5.8054,172.22,172.19,2.18204327]
[1747381509538,5.8054,172.22,172.2,2.18204327]
[1747381509737,5.8054,172.22,172.21,2.18204327]
[1747381510140,5.8055,172.21,172.18,63.46]
[1747381510340,5.8055,172.21,172.19,2.18201171]
[1747381510640,5.8055,172.21,172.2,2.18201171]
[1747381511934,5.8061,172.19,172.18,63.46]
[1747381512241,5.8061,172.19,172.18,2.18259732]
[1747381513037,5.8059,172.2,172.18,2.18259732]
[1747381513332,5.8059,172.2,172.19,2.18259732]
[1747381514742,63.3,172.23,172.19,2.18259732]
[1747381515041,63.3,172.23,172.2,2.18259732]
[1747381515237,63.3,172.23,172.21,2.18259732]
[1747381515444,5.8052,172.22,172.18,5.8061]
[1747381515633,5.8052,172.22,172.19,2.18173055]
[1747381515832,5.8052,172.22,172.2,2.18173055]
[1747381516132,5.8054,172.21,172.17,69.2667]
[1747381516333,5.8054,172.21,172.18,2.18197947]
[1747381516633,5.8054,172.21,172.19,2.18197947]
[1747381516836,5.8054,172.21,172.2,2.18197947]
[1747381517645,5.8054,172.21,172.2,2.18219437]
[1747381518150,5.8052,172.22,172.2,2.18219437]
[1747381518447,5.8052,172.22,172.21,2.18219437]
[1747381519552,5.8052,172.22,172.21,2.18265654]
[1747381521451,5.8055,172.21,172.17,63.46]
[1747381521643,5.8055,172.21,172.18,2.18307579]
[1747381521844,5.8055,172.21,172.19,2.18307579]
[1747381522048,5.8055,172.21,172.2,2.18307579]
[1747381524354,5.8055,172.21,172.2,2.18343961]
[1747381527747,5.8055,172.21,172.16,63.22]
[1747381527945,5.8055,172.21,172.17,5.8067]
[1747381528239,5.8058,172.2,172.17,5.8067]
[1747381528444,5.8058,172.2,172.18,2.1840672]
[1747381528652,188.26090315,172.27,172.19,9.69049822]
[1747381528960,63.22,172.31,172.21,7.50486772]
[1747381529158,5.8026,172.3,172.22,67.2889672]
[1747381529353,5.8026,172.3,172.24,7.50486772]
[1747381529552,63.18,172.32,172.26,5.8035]
[1747381529748,63.18,172.32,172.27,2.1840672]
[1747381529949,63.18,172.32,172.28,2.1840672]
[1747381530250,63.18,172.32,172.29,2.1817986]
[1747381530455,63.18,172.32,172.3,2.1804864]
[1747381530651,63.18,172.32,172.31,2.1804864]
[1747381530850,68.9817,172.32,172.31,2.1804864]
[1747381532055,5.8027,172.3,172.25,69.0238]
[1747381532257,63.18,172.32,172.26,2.18122169]
[1747381532454,63.18,172.32,172.27,2.18122169]
[1747381532656,63.18,172.32,172.28,2.18122169]
[1747381532954,63.18,172.32,172.29,2.18122169]
[1747381533151,5.8021,172.31,172.3,2.18122169]
[1747381535646,5.8035,172.27,172.25,63.22]
[1747381535848,5.8035,172.27,172.26,2.17834454]
[1747381537655,3.9937,172.34,172.26,2.17834454]
[1747381537858,63.12,172.36,172.27,9.68321226]
[1747381538164,63.12,172.36,172.27,9.48076772]
[1747381538353,5.8013,172.34,172.27,9.48076772]
[1747381538558,63.12,172.36,172.27,9.48076772]
[1747381538962,5.801,172.35,172.28,2.17781781]
[1747381539161,63.12,172.36,172.29,2.17781781]
[1747381539463,63.1,172.37,172.3,2.17823006]
[1747381539761,63.1,172.37,172.31,2.17823006]
[1747381539961,5.8005,172.36,172.32,2.17823006]
[1747381540257,5.8005,172.36,172.33,2.17823006]
[1747381540453,5.8005,172.36,172.34,2.17823006]
[1747381540658,63.1,172.37,172.35,2.17607176]
[1747381540858,63.1,172.37,172.31,5.802]
[1747381541058,63.1,172.37,172.32,2.17584593]
[1747381541259,68.9002,172.37,172.33,2.17584593]
[1747381541460,68.9002,172.37,172.34,2.17584593]
[1747381541656,68.9002,172.37,172.35,2.17584593]
[1747381541854,68.9002,172.37,172.36,2.17584593]
[1747381542757,5.8002,172.37,172.36,2.17584593]
[1747381543257,5.8002,172.37,172.32,5.8017]
[1747381543557,5.8002,172.37,172.33,2.17144465]
[1747381543756,5.8002,172.37,172.34,2.17144465]
[1747381544051,5.8002,172.37,172.35,2.17144465]
[1747381544251,5.8004,172.36,172.31,5.802]
[1747381544454,126.3,172.38,172.32,2.1706985]
[1747381544660,126.3,172.38,172.33,2.1706985]
[1747381544865,126.3,172.38,172.34,2.1706985]
[1747381545160,126.3,172.38,172.35,2.17032797]
[1747381545357,126.3,172.38,172.3,63.2]
[1747381545552,5.8001,172.37,172.32,5.8017]
[1747381545754,5.8001,172.37,172.33,2.16956293]
[1747381545951,5.8001,172.37,172.34,2.16956293]
[1747381546250,126.3,172.38,172.32,5.8017]
[1747381546463,126.3,172.38,172.33,2.1688255]
[1747381546661,5.8001,172.37,172.34,2.1688255]
[1747381546862,5.8001,172.37,172.32,5.8017]
[1747381547061,5.8001,172.37,172.33,2.16868937]
[1747381547261,68.9998,172.38,172.34,2.16869239]
[1747381547462,126.28,172.38,172.33,5.8013]
[1747381547663,126.28,172.38,172.34,2.16787943]
[1747381547966,5.8004,172.36,172.31,5.8018]
[1747381548161,5.8004,172.36,172.32,2.16802557]
[1747381548358,126.28,172.38,172.33,2.16802557]
[1747381548568,126.28,172.38,172.3,63.2]
[1747381548767,126.28,172.38,172.31,2.16774065]
[1747381549066,126.28,172.38,172.32,2.16774065]
[1747381549269,126.28,172.38,172.33,2.16774065]
[1747381549462,5.8001,172.37,172.34,2.16774065]
[1747381549661,126.28,172.38,172.32,5.8015]
[1747381549861,126.28,172.38,172.33,2.1667755]
[1747381550062,5.8001,172.37,172.34,2.1667755]
[1747381550263,126.28,172.38,172.32,5.8015]
[1747381550464,126.28,172.38,172.33,2.1661975]
[1747381550664,5.8007,172.35,172.34,2.1661975]
[1747381551266,5.8007,172.35,172.31,5.8019]
[1747381551462,5.8007,172.35,172.32,2.16586844]
[1747381551668,5.8008,172.35,172.33,2.16586844]
[1747381551876,63.2,172.38,172.34,2.16586844]
[1747381552171,5.8004,172.36,172.33,5.8014]
[1747381552371,5.8004,172.36,172.34,2.16539608]
[1747381552570,5.8004,172.36,172.33,5.8014]
[1747381552967,5.8004,172.36,172.34,2.16517379]
[1747381553171,5.8004,172.36,172.33,5.8014]
[1747381553371,5.8004,172.36,172.34,2.16483887]
[1747381553675,63.06,172.4,172.35,2.16459876]
[1747381553876,63.06,172.4,172.36,2.16459876]
[1747381554080,5.7996,172.39,172.36,5.8004]
[1747381554269,63.06,172.4,172.33,7.50486772]
[1747381554582,357.21766117,172.42,172.34,65.2238394]
[1747381554780,294.15766117,172.42,172.35,2.1638394]
[1747381554968,294.15766117,172.42,172.36,2.1638394]
[1747381555168,5.7993,172.4,172.37,7.9638394]
[1747381555373,294.15766117,172.42,172.38,2.1638394]
[1747381555580,294.15766117,172.42,172.35,1.9462]
[1747381555786,294.15766117,172.42,172.36,2.16200964]
[1747381556082,63.92,172.41,172.34,63.04]
[1747381556281,5.8,172.38,172.35,7.96350221]
[1747381556473,5.8,172.38,172.35,5.8007]
[1747381556984,5.8,172.38,172.36,2.16274523]
[1747381557282,294.15766117,172.42,172.37,2.16210071]
[1747381557483,294.15766117,172.42,172.38,2.16213131]
[1747381557677,294.15766117,172.42,172.34,63.04]
[1747381557878,294.15766117,172.42,172.35,2.16189448]
[1747381558080,294.15766117,172.42,172.36,2.16189448]
[1747381558281,5.7987,172.41,172.38,5.7995]
[1747381558481,5.7987,172.41,172.34,63.04]
[1747381558673,5.7987,172.41,172.35,2.16180707]
[1747381558879,5.7987,172.41,172.38,5.7996]
[1747381559283,5.7987,172.41,172.34,63.04]
[1747381559480,5.7991,172.4,172.37,5.7999]
[1747381559681,5.7991,172.4,172.38,2.16164764]
[1747381559882,294.15766117,172.42,172.38,5.7997]
[1747381560081,5.799,172.41,172.38,5.7997]
[1747381560286,294.15766117,172.42,172.34,63.04]
[1747381560489,294.15766117,172.42,172.35,7.96263251]
[1747381560785,294.15766117,172.42,172.35,5.8006]
[1747381560980,296.05946117,172.42,172.36,7.96371797]
[1747381561188,296.05946117,172.42,172.36,5.8003]
[1747381561388,296.05946117,172.42,172.34,63.04]
[1747381561586,296.05946117,172.42,172.35,7.96441612]
[1747381561787,297.91226117,172.42,172.35,5.8006]
[1747381562190,297.91226117,172.42,172.31,107.00260045]
[1747381562490,7.50486772,172.41,172.32,2.16499583]
[1747381562690,63.84,172.4,172.33,2.16499583]
[1747381562885,63.04,172.39,172.31,107.00260045]
[1747381563187,63.04,172.39,172.34,5.8009]
[1747381563389,63.04,172.39,172.31,107.00260045]
[1747381563590,5.8003,172.37,172.32,2.16576528]
[1747381563789,5.8003,172.37,172.33,2.16576528]
[1747381564089,63.04,172.39,172.34,2.16578719]
[1747381564391,63.04,172.39,172.35,2.16601463]
[1747381564690,63.04,172.39,172.3,7.50486772]
[1747381564881,63.04,172.39,172.31,2.16666239]
[1747381565083,63.04,172.39,172.32,2.16666239]
[1747381565284,63.04,172.39,172.33,2.16666239]
[1747381565586,63.04,172.39,172.3,7.50486772]
[1747381565892,5.801,172.35,172.31,7.96953541]
[1747381566083,63.04,172.39,172.32,2.16753541]
[1747381566283,63.04,172.39,172.33,2.16753541]
[1747381566484,5.8009,172.35,172.3,5.8023]
[1747381566788,5.8009,172.35,172.31,2.16828166]
[1747381566996,65.0194,172.39,172.32,2.16828166]
[1747381567288,65.0194,172.39,172.33,2.16771287]
[1747381567492,5.8007,172.35,172.34,2.16771287]
[1747381568091,5.8005,172.36,172.34,2.16771287]
[1747381568389,5.8005,172.36,172.32,5.8017]
[1747381568390,65.0194,172.39,172.29,63.04]
[1747381568687,5.8008,172.35,172.31,5.8021]
[1747381568882,5.8008,172.35,172.32,2.17026729]
[1747381569083,5.8008,172.35,172.33,2.17000298]
[1747381569283,5.8008,172.35,172.34,2.17000298]
[1747381569489,65.0194,172.39,172.34,2.17000298]
[1747381569687,65.0194,172.39,172.35,2.17000298]
[1747381569987,5.8006,172.36,172.31,5.8019]
[1747381570187,65.0194,172.39,172.32,2.16949661]
[1747381570389,65.0194,172.39,172.33,2.16949661]
[1747381570591,65.0194,172.39,172.34,2.17048585]
[1747381570786,63.04,172.39,172.35,2.17009147]
[1747381570985,297.91226117,172.42,172.36,2.17009147]
[1747381571187,65.18,172.41,172.37,2.17009147]
[1747381571389,5.7997,172.39,172.38,2.17042295]
[1747381574686,65.08,172.4,172.38,2.17042295]
[1747381574895,65.08,172.4,172.35,5.8007]
[1747381575398,5.7994,172.39,172.36,2.17297798]
[1747381575587,5.7994,172.39,172.37,2.17297798]
[1747381575892,5.7994,172.39,172.38,2.17297798]
[1747381576487,70.7791,172.4,172.38,2.17297798]
[1747381576695,70.7791,172.4,172.39,2.1733306]
[1747381578602,5.7994,172.39,172.35,5.8006]
[1747381578790,5.7994,172.39,172.36,2.17383386]
[1747381578986,5.7994,172.39,172.37,2.17383386]
[1747381579192,5.7994,172.39,172.38,2.17383386]
[1747381581195,64.98,172.4,172.38,2.17383386]
[1747381581396,64.98,172.4,172.39,2.17383386]
[1747381581898,70.7791,172.4,172.39,2.17383386]
[1747381582398,70.7791,172.4,172.39,2.17664817]
[1747381582700,294.15766117,172.42,172.39,2.17664817]
[1747381582889,294.15766117,172.42,172.36,7.50486772]
[1747381582890,294.15766117,172.42,172.4,2.17664817]
[1747381583094,127.66,172.43,172.41,2.17664817]
[1747381583391,133.4581,172.43,172.42,2.17664817]
[1747381585997,68.8381,172.43,172.42,2.17664817]
[1747381586196,5.799,172.41,172.33,72.45896772]
[1747381586398,5.799,172.41,172.37,5.8]
[1747381586589,5.799,172.41,172.38,2.17490756]
[1747381586789,5.799,172.41,172.39,2.17490756]
[1747381586989,5.799,172.41,172.4,2.17490756]
[1747381589999,5.7998,172.38,172.34,5.8008]
[1747381590298,5.7998,172.38,172.35,2.17511418]
[1747381590500,5.7998,172.38,172.36,2.17511418]
[1747381590701,5.7998,172.38,172.37,2.17511418]
[1747381591305,5.7995,172.39,172.37,2.17511418]
[1747381591500,5.7995,172.39,172.38,2.17511418]
[1747381592402,5.7995,172.39,172.38,2.17565804]
[1747381593502,5.7993,172.4,172.33,63.04]
[1747381593696,127.78,172.43,172.35,7.50486772]
[1747381593892,127.78,172.43,172.36,2.17662359]
[1747381594099,127.78,172.43,172.37,2.17662359]
[1747381594407,1.8798,172.46,172.38,9.68149131]
[1747381594699,133.257,172.47,172.41,5.7985]
[1747381594906,64.64,172.47,172.42,2.17662359]
[1747381595098,64.64,172.47,172.43,2.17662359]
[1747381595406,64.64,172.47,172.44,2.17662359]
[1747381595601,64.64,172.47,172.45,2.17662359]
[1747381595795,64.64,172.47,172.46,2.17283745]
[1747381596406,131.42,172.47,172.46,2.17283745]
[1747381597805,137.2167,172.47,172.46,2.17283745]
[1747381601009,131.42,172.47,172.39,5.7991]
[1747381601195,131.42,172.47,172.4,2.16941145]
[1747381601400,131.42,172.47,172.41,2.16941145]
[1747381601603,5.7986,172.42,172.37,70.4198]
[1747381601910,5.7986,172.42,172.38,2.16897657]
[1747381602206,5.7986,172.42,172.37,70.4198]
[1747381605213,5.7982,172.43,172.42,2.16904706]
[1747381605423,5.7978,172.44,172.42,2.16829427]
[1747381605708,131.42,172.47,172.43,2.16786651]
[1747381605911,131.42,172.47,172.44,2.16786651]
[1747381606106,5.797,172.46,172.45,2.16786651]
[1747381606711,72.217,172.46,172.45,2.16786651]
[1747381609210,66.42,172.46,172.45,2.16729721]
[1747381610111,72.217,172.46,172.45,2.16729721]
[1747381611110,5.7976,172.45,172.4,5.7989]
[1747381611411,1.9792,172.51,172.41,2.16786365]
[1747381611618,67.34,172.5,172.42,2.16786365]
[1747381611804,5.7966,172.48,172.43,7.96576365]
[1747381612009,67.34,172.5,172.44,2.16786365]
[1747381612209,64.62,172.51,172.45,2.16786365]
[1747381612405,5.7969,172.47,172.46,2.16786365]
[1747381614318,5.7964,172.48,172.46,2.16786365]
[1747381614517,5.7964,172.48,172.47,2.16786365]
[1747381618025,5.7977,172.45,172.4,3.7992]
[1747381618213,67.08,172.5,172.41,2.16914357]
[1747381618415,67.08,172.5,172.42,2.16914357]
[1747381618617,67.08,172.5,172.43,2.16914357]
[1747381618823,67.08,172.5,172.44,2.16914357]
[1747381619120,67.08,172.5,172.45,2.16914357]
[1747381619321,5.7967,172.47,172.46,2.16914357]
[1747381619820,67.08,172.5,172.46,2.16914357]
[1747381620019,67.08,172.5,172.47,2.16914357]
[1747381620323,5.796,172.49,172.48,2.16914357]
[1747381620825,67.08,172.5,172.4,1.8478]
[1747381621024,67.08,172.5,172.41,2.16439617]
[1747381621225,5.7979,172.44,172.42,2.16439617]
[1747381621416,67.08,172.5,172.43,2.16439617]
[1747381621716,67.08,172.5,172.44,2.16439617]
[1747381621919,67.08,172.5,172.45,2.16439617]
[1747381622224,67.08,172.5,172.46,2.16439617]
[1747381622417,66.72,172.5,172.47,2.16439617]
[1747381622621,5.7963,172.49,172.48,2.16439617]
[1747381623828,13.30486772,172.49,172.32,67.24]
[1747381624124,7.50486772,172.45,172.32,67.24]
[1747381624324,5.7997,172.39,172.33,5.8012]
[1747381624623,133.84,172.44,172.32,67.24]
[1747381624824,5.8006,172.36,172.32,67.24]
[1747381626727,5.8008,172.35,172.32,67.24]
[1747381627322,5.8011,172.34,172.32,67.24]
[1747381628524,5.8014,172.33,172.32,67.24]
[1747381629728,5.8012,172.34,172.32,67.24]
[1747381630226,66.36,172.39,172.32,67.24]
[1747381631926,5.8011,172.34,172.32,67.24]
[1747381632127,66.36,172.39,172.32,67.24]
[1747381632526,5.8003,172.37,172.32,73.0415]
[1747381632732,5.8003,172.37,172.32,67.24]
[1747381632925,66.36,172.39,172.32,67.24]
[1747381633126,5.8001,172.37,172.33,5.8012]
[1747381635730,5.8001,172.37,172.34,7.90918581]
[1747381635935,5.7997,172.38,172.35,2.10808581]
[1747381636230,65.8,172.41,172.36,7.90848581]
[1747381636430,65.8,172.41,172.37,2.10808581]
[1747381636733,65.8,172.41,172.38,2.10808581]
[1747381636928,5.7991,172.4,172.39,2.10808581]
[1747381637530,65.66,172.43,172.39,2.10808581]
[1747381637730,65.66,172.43,172.4,2.10808581]
[1747381637926,5.7986,172.42,172.41,2.10808581]
[1747381638430,5.8005,172.36,172.32,73.0814]
[1747381638630,5.8005,172.36,172.32,67.28]
[1747381639431,5.8008,172.35,172.32,67.28]
[1747381640030,5.8006,172.36,172.32,67.28]
[1747381640231,5.8006,172.36,172.32,73.0818]
[1747381641034,65.66,172.43,172.32,73.0818]
[1747381641833,5.8006,172.36,172.32,73.0818]
[1747381643937,5.8007,172.35,172.32,73.0818]
[1747381644540,5.8007,172.35,172.32,67.28]
[1747381645836,5.8011,172.34,172.32,67.28]
[1747381646039,65.66,172.43,172.32,67.28]
[1747381646642,5.8009,172.35,172.32,67.28]
[1747381649555,5.8005,172.36,172.32,73.0816]
[1747381650053,65.66,172.43,172.32,73.0816]
[1747381650449,65.66,172.43,172.32,67.28]
[1747381651451,5.801,172.35,172.32,67.28]
[1747381653157,5.801,172.35,172.32,73.0817]
[1747381653355,5.801,172.35,172.32,67.28]
[1747381654947,5.8005,172.36,172.32,73.0817]
[1747381655147,1.9337,172.42,172.32,67.28]
[1747381655450,9.43856772,172.42,172.28,5.7311]
[1747381655652,3.8801,172.41,172.3,65.36]
[1747381656052,5.8007,172.36,172.31,5.802]
[1747381656254,5.8007,172.36,172.3,65.36]
[1747381656453,5.8003,172.37,172.33,5.8013]
[1747381656651,3.8801,172.41,172.33,5.8013]
[1747381657159,5.8005,172.36,172.33,5.8013]
[1747381657761,5.8005,172.36,172.32,5.8016]
[1747381657957,3.8801,172.41,172.32,5.8016]
[1747381658358,5.8006,172.36,172.32,5.8016]
[1747381659154,5.8006,172.36,172.33,5.8014]
[1747381660462,67.24,172.44,172.32,65.36]
[1747381660663,64.38,172.43,172.33,64.38]
[1747381660962,5.7989,172.41,172.33,64.38]
[1747381661261,5.7989,172.41,172.34,1.9372]
[1747381661461,67.24,172.44,172.34,1.9372]
[1747381661663,131.56,172.44,172.35,9.39206772]
[1747381661959,7.50486772,172.47,172.35,9.39206772]
[1747381662160,5.7982,172.43,172.41,5.7987]
[1747381664661,5.7979,172.44,172.41,5.7987]
[1747381665462,5.7983,172.43,172.4,5.7989]
[1747381666457,5.7984,172.42,172.39,5.7993]
[1747381666661,270.52098809,172.46,172.38,65.36]
[1747381668064,5.7982,172.43,172.39,5.7994]
[1747381668364,5.7982,172.43,172.38,65.36]
[1747381669165,5.7982,172.43,172.39,5.7994]
[1747381671565,5.7982,172.43,172.4,5.799]
[1747381671758,5.7979,172.44,172.4,5.799]
[1747381672666,5.7982,172.43,172.4,5.799]
[1747381675266,5.7984,172.42,172.39,5.7993]
[1747381677675,270.52098809,172.46,172.38,71.1596]
[1747381677976,270.52098809,172.46,172.38,65.36]
[1747381678274,270.52098809,172.46,172.39,5.7992]
[1747381678675,270.52098809,172.46,172.38,65.36]
[1747381678875,5.7994,172.4,172.38,65.36]
[1747381679570,5.7997,172.38,172.34,1.9372]
[1747381679777,5.7997,172.38,172.34,63.54]
[1747381679973,63.44,172.42,172.34,63.54]
[1747381680175,1.8603,172.41,172.34,63.54]
[1747381680375,3.7201,172.41,172.34,63.54]
[1747381680674,5.7992,172.4,172.34,63.54]
[1747381680874,63.44,172.42,172.34,63.54]
[1747381681075,63.44,172.42,172.38,5.7997]
[1747381682178,63.44,172.42,172.37,5.8001]
[1747381682480,63.44,172.42,172.34,63.54]
[1747381682677,5.7992,172.4,172.36,5.8002]
[1747381682978,63.44,172.42,172.34,63.54]
[1747381683181,5.7999,172.38,172.34,69.3408]
[1747381683372,5.7999,172.38,172.34,63.54]
[1747381684080,5.7995,172.39,172.35,5.8005]
[1747381685077,5.7995,172.39,172.34,63.54]
[1747381685280,5.7995,172.39,172.36,5.8003]
[1747381685484,5.7991,172.4,172.34,63.54]
[1747381685685,126.98,172.44,172.39,5.7992]
[1747381685880,63.44,172.44,172.38,63.54]
[1747381686081,5.7981,172.43,172.38,63.54]
[1747381686281,63.44,172.44,172.38,63.54]
[1747381686482,5.7986,172.42,172.38,63.54]
[1747381687482,206.42098809,172.46,172.38,63.54]
[1747381687681,269.86098809,172.46,172.41,5.7985]
[1747381687985,5.7979,172.44,172.41,5.7985]
[1747381688484,5.7974,172.45,172.39,7.50486772]
[1747381689282,63.42,172.51,172.39,7.50486772]
[1747381689474,65.5016,172.52,172.4,1.8335]
[1747381689678,63.42,172.51,172.41,1.8621]
[1747381689876,5.7962,172.49,172.42,63.54]
[1747381690081,5.7962,172.49,172.42,128.8007]
[1747381690375,5.7962,172.49,172.46,5.7969]
[1747381690879,5.7964,172.48,172.46,5.7969]
[1747381691086,5.7964,172.48,172.45,5.7973]
[1747381691687,63.42,172.51,172.45,5.7973]
[1747381691878,63.42,172.51,172.42,128.8007]
[1747381692281,5.7972,172.46,172.42,128.8007]
[1747381692580,5.7972,172.46,172.43,5.798]
[1747381693185,63.42,172.51,172.42,126.96]
[1747381693982,5.7961,172.49,172.46,5.7968]
[1747381695587,5.7958,172.5,172.47,5.7967]
[1747381696287,5.7956,172.51,172.48,5.7964]
[1747381696494,1.9616,172.52,172.48,5.7964]
[1747381696687,3.8033,172.55,172.46,63.54]
[1747381696988,67.2233,172.55,172.46,126.96]
[1747381697190,5.795,172.53,172.49,5.7958]
[1747381697389,67.2233,172.55,172.49,5.7958]
[1747381697578,67.2233,172.55,172.46,126.96]
[1747381697784,67.2233,172.55,172.48,5.7963]
[1747381698184,67.2233,172.55,172.46,126.96]
[1747381698390,67.2233,172.55,172.46,132.757]
[1747381698585,67.2233,172.55,172.46,126.96]
[1747381698780,1.9711,172.54,172.46,126.96]
[1747381699792,5.7963,172.49,172.46,126.96]
[1747381700091,5.7963,172.49,172.46,63.54]
[1747381700285,1.9711,172.54,172.46,63.54]
[1747381700892,5.7965,172.48,172.46,63.54]
[1747381701393,1.9711,172.54,172.46,63.54]
[1747381702295,5.7959,172.5,172.46,63.54]
[1747381702993,5.7955,172.51,172.46,63.54]
[1747381704194,5.7951,172.52,172.46,63.54]
[1747381704694,7.7655,172.54,172.46,63.54]
[1747381704893,7.7655,172.54,172.46,126.94]
[1747381705092,1.9711,172.54,172.46,126.94]
[1747381705990,1.9711,172.54,172.49,5.7958]
[1747381706697,5.7952,172.52,172.49,5.7958]
[1747381707196,1.9711,172.54,172.48,5.7963]
[1747381707588,1.9711,172.54,172.48,5.7962]
[1747381707894,5.7953,172.52,172.46,126.94]
[1747381708097,1.9711,172.54,172.46,126.94]
[1747381708391,1.9711,172.54,172.5,5.7955]
[1747381708996,5.7949,172.53,172.49,5.7959]
[1747381710501,5.795,172.52,172.49,5.7959]
[1747381712600,5.7954,172.51,172.49,5.7959]
[1747381713200,5.7954,172.51,172.46,126.94]
[1747381713201,5.7954,172.51,172.48,5.7962]
[1747381713701,5.7954,172.51,172.49,5.796]
[1747381713998,5.7951,172.52,172.49,5.796]
[1747381715403,5.7955,172.51,172.48,5.7962]
[1747381715590,5.7955,172.51,172.46,126.94]
[1747381716102,5.7955,172.51,172.49,5.796]
[1747381718203,5.7951,172.52,172.5,5.7956]
[1747381720905,5.7948,172.53,172.5,5.7956]
[1747381721107,126.92,172.56,172.49,5.7958]
[1747381721303,126.92,172.56,172.46,128.8983]
[1747381722205,126.92,172.56,172.48,5.7963]
[1747381722808,5.7956,172.51,172.47,5.7966]
[1747381722999,5.7956,172.51,172.46,126.94]
[1747381723601,5.7956,172.51,172.48,5.7964]
[1747381723905,5.7956,172.51,172.46,126.94]
[1747381724097,5.7956,172.51,172.47,5.7966]
[1747381724906,5.7957,172.5,172.47,5.7966]
[1747381725209,126.92,172.56,172.47,5.7966]
[1747381725409,5.7957,172.51,172.47,5.7966]
[1747381728007,5.7958,172.5,172.47,5.7966]
[1747381728809,5.7955,172.51,172.47,5.7966]
[1747381729504,5.7955,172.51,172.48,5.7963]
[1747381731011,126.92,172.56,172.49,5.796]
[1747381731402,126.92,172.56,172.46,63.54]
[1747381731804,5.7954,172.51,172.48,5.7962]
[1747381733413,126.92,172.56,172.48,5.7962]
[1747381734016,5.7954,172.51,172.48,5.7962]
[1747381735608,5.795,172.53,172.46,63.54]
[1747381735808,63.32,172.55,172.46,63.54]
[1747381736210,5.7949,172.53,172.5,5.7955]
[1747381737919,5.7949,172.53,172.51,5.7953]
[1747381738116,5.7944,172.54,172.46,63.54]
[1747381738418,5.7944,172.54,172.52,5.7949]
[1747381739822,5.7942,172.55,172.5,63.3]
[1747381740116,5.7945,172.54,172.52,5.7948]
[1747381740321,65.1869,172.58,172.5,63.3]
[1747381740722,5.7948,172.53,172.5,63.3]
[1747381740921,65.1869,172.58,172.5,63.3]
[1747381741822,5.7948,172.53,172.5,69.0955]
[1747381742124,65.1869,172.58,172.5,63.3]
[1747381742323,5.7954,172.51,172.5,63.3]
[1747381743119,76.7734,172.58,172.47,63.3]
[1747381743423,63.28,172.54,172.47,63.3]
[1747381745129,63.28,172.54,172.47,70.78239653]
[1747381745432,5.7943,172.55,172.47,70.78239653]
[1747381745622,5.7943,172.55,172.48,63.28]
[1747381745825,63.28,172.58,172.53,5.7944]